bitfinex/quotes_SOLUSD_20230105
["timestamp","ask_amount","ask_price","bid_price","bid_amount"]
[1672894272209,116.997,13.39,13.381,17.0]
[1672894272965,116.997,13.39,13.38,17.0]
[1672894273666,116.997,13.39,13.38,20.0]
[1672894273880,116.997,13.39,13.381,17.0]
[1672894274312,116.997,13.39,13.38,17.0]
[1672894275265,116.997,13.39,13.379,17.0]
[1672894277475,116.997,13.39,13.381,20.0]
[1672894277661,116.997,13.39,13.382,17.0]
[1672894278713,116.997,13.39,13.381,17.0]
[1672894280291,116.997,13.39,13.381,20.0]
[1672894280500,116.997,13.39,13.382,17.0]
[1672894281049,116.997,13.39,13.382,20.0]
[1672894281251,116.997,13.39,13.383,17.0]
[1672894281442,116.997,13.39,13.381,17.0]
[1672894281660,116.997,13.39,13.379,22.41737149]
[1672894281661,116.997,13.39,13.38,17.0]
[1672894281887,116.997,13.39,13.38,241.4]
[1672894282923,173.047,13.39,13.38,17.0]
[1672894283135,173.047,13.39,13.379,17.0]
[1672894283347,116.997,13.39,13.379,17.0]
[1672894283882,116.997,13.39,13.38,20.0]
[1672894284076,116.997,13.39,13.381,17.0]
[1672894285168,116.997,13.39,13.381,241.4]
[1672894286093,116.997,13.39,13.381,17.0]
[1672894286299,116.997,13.39,13.38,17.0]
[1672894291330,115.6283,13.391,13.381,22.41737149]
[1672894291554,115.6283,13.391,13.382,17.0]
[1672894315424,56.03,13.394,13.382,17.0]
[1672894315641,56.02,13.397,13.383,76.08]
[1672894315839,56.0,13.401,13.383,98.49737149]
[1672894316060,55.99,13.403,13.384,39.41737149]
[1672894316250,171.8611,13.404,13.385,40.0]
[1672894316462,56.0,13.402,13.386,17.0]
[1672894316678,55.99,13.403,13.386,39.41737149]
[1672894316887,56.0,13.401,13.388,20.0]
[1672894317099,56.0,13.402,13.389,17.0]
[1672894317421,75.99,13.403,13.389,17.0]
[1672894317632,56.0,13.401,13.389,17.0]
[1672894317841,56.0,13.402,13.389,17.0]
[1672894318268,76.02,13.397,13.37,6.31]
[1672894318590,6.34,13.39,13.371,224.4]
[1672894318771,119.7151,13.389,13.371,224.4]
[1672894318983,119.7151,13.389,13.37,109.6186]
[1672894318984,20.0,13.388,13.373,224.4]
[1672894319409,20.0,13.388,13.374,280.52]
[1672894319410,56.06,13.387,13.374,280.52]
[1672894319630,20.0,13.386,13.374,224.4]
[1672894320056,20.0,13.386,13.375,20.0]
[1672894320689,20.0,13.386,13.373,20.0]
[1672894321004,20.0,13.386,13.373,300.52]
[1672894321194,34.95661331,13.386,13.373,20.0]
[1672894321408,20.0,13.384,13.373,20.0]
[1672894321617,20.0,13.384,13.371,20.0]
[1672894321826,20.0,13.384,13.369,56.14]
[1672894322159,6.34,13.38,13.365,56.15]
[1672894322352,6.34,13.38,13.365,224.4]
[1672894322567,20.0,13.378,13.366,280.55]
[1672894322787,20.0,13.378,13.366,224.4]
[1672894323009,20.0,13.378,13.364,56.16]
[1672894323323,20.0,13.378,13.365,224.4]
[1672894323631,113.19,13.377,13.366,20.0]
[1672894323824,187.55601331,13.379,13.366,20.0]
[1672894324031,116.4994,13.379,13.368,224.4]
[1672894324469,116.4994,13.379,13.369,17.0]
[1672894325924,116.4994,13.379,13.369,20.0]
[1672894326140,116.4994,13.379,13.37,17.0]
[1672894329092,20.0,13.381,13.371,20.0]
[1672894329418,56.07,13.386,13.372,241.4]
[1672894329622,56.07,13.386,13.373,20.0]
[1672894329832,71.01661331,13.387,13.375,20.0]
[1672894330233,71.01661331,13.387,13.376,37.0]
[1672894336866,14.95661331,13.387,13.376,37.0]
[1672894338037,71.01661331,13.387,13.376,37.0]
[1672894338439,14.95661331,13.387,13.376,37.0]
[1672894341714,118.7436,13.388,13.376,261.4]
[1672894342571,133.66033941,13.388,13.376,261.4]
[1672894342766,133.66033941,13.388,13.377,224.4]
[1672894342977,133.66033941,13.388,13.378,17.0]
[1672894343397,133.66033941,13.388,13.377,17.0]
[1672894345838,20.0,13.387,13.376,20.0]
[1672894346143,34.08654241,13.387,13.374,20.0]
[1672894346336,70.14654241,13.387,13.375,224.4]
[1672894346546,144.43413836,13.388,13.376,20.0]
[1672894346985,144.43413836,13.388,13.378,20.0]
[1672894347199,200.49413836,13.388,13.379,17.0]
[1672894347384,144.43413836,13.388,13.379,17.0]
[1672894347597,144.43413836,13.388,13.378,17.0]
[1672894348766,118.7436,13.388,13.378,17.0]
[1672894352429,118.7436,13.388,13.377,108.4352]
[1672894352855,118.7436,13.388,13.376,244.4]
[1672894353071,56.06,13.387,13.376,20.0]
[1672894353282,81.75053836,13.387,13.376,20.0]
[1672894353501,20.0,13.385,13.376,20.0]
[1672894353706,20.0,13.385,13.372,20.0]
[1672894353916,56.07,13.384,13.372,20.0]
[1672894354134,20.0,13.383,13.371,20.0]
[1672894354559,20.0,13.383,13.372,17.0]
[1672894354868,68.81748953,13.383,13.369,78.55737149]
[1672894355080,20.0,13.381,13.369,22.41737149]
[1672894355479,20.0,13.381,13.368,224.4]
[1672894355690,56.09,13.38,13.367,224.4]
[1672894355900,20.0,13.379,13.367,224.4]
[1672894356554,34.08654241,13.379,13.364,280.56]
[1672894356747,56.1,13.378,13.364,280.56]
[1672894357078,20.0,13.377,13.364,280.56]
[1672894357290,130.4652,13.377,13.364,280.56]
[1672894357898,130.4652,13.377,13.365,17.0]
[1672894358109,130.4652,13.377,13.366,20.0]
[1672894358541,144.55174241,13.377,13.366,20.0]
[1672894358754,20.0,13.375,13.365,20.0]
[1672894359164,144.55174241,13.377,13.365,20.0]
[1672894359601,144.55174241,13.377,13.364,20.0]
[1672894359807,144.55174241,13.377,13.365,297.55]
[1672894360224,144.55174241,13.377,13.366,20.0]
[1672894360547,144.55174241,13.377,13.367,17.0]
[1672894360753,130.4652,13.377,13.367,17.0]
[1672894363068,130.4652,13.377,13.366,20.0]
[1672894363281,130.4652,13.377,13.365,20.0]
[1672894363474,130.4652,13.377,13.364,20.0]
[1672894364107,130.4652,13.377,13.366,224.4]
[1672894364332,130.4652,13.377,13.367,17.0]
[1672894365694,130.4652,13.377,13.366,17.0]
[1672894365907,130.4652,13.377,13.365,17.0]
[1672894366219,130.4652,13.377,13.366,20.0]
[1672894366549,130.4652,13.377,13.367,17.0]
[1672894366729,110.4652,13.377,13.367,17.0]
[1672894367364,20.0,13.376,13.366,20.0]
[1672894367586,20.0,13.376,13.365,20.0]
[1672894367814,76.11,13.376,13.365,20.0]
[1672894368122,76.11,13.376,13.364,20.0]
[1672894368527,20.0,13.376,13.364,20.0]
[1672894368963,20.0,13.376,13.365,17.0]
[1672894369153,20.0,13.376,13.366,20.0]
[1672894369363,20.0,13.376,13.367,17.0]
[1672894369574,166.5652,13.377,13.367,17.0]
[1672894369999,110.4652,13.377,13.367,17.0]
[1672894370532,20.0,13.376,13.367,17.0]
[1672894370724,76.11,13.376,13.367,17.0]
[1672894370934,76.11,13.376,13.366,20.0]
[1672894371144,90.19654241,13.376,13.364,20.0]
[1672894371360,20.0,13.374,13.358,224.4]
[1672894371594,12.65,13.37,13.357,56.19]
[1672894371806,129.902,13.37,13.354,56.2]
[1672894372020,220.58312068,13.369,13.351,56.21]
[1672894372208,20.0,13.368,13.351,56.21]
[1672894372418,195.30790338,13.368,13.351,56.21]
[1672894372637,20.0,13.366,13.35,280.62]
[1672894372849,20.0,13.366,13.352,20.0]
[1672894373068,84.53908874,13.366,13.352,244.4]
[1672894373259,84.53908874,13.366,13.353,280.6]
[1672894373473,84.53908874,13.366,13.354,17.0]
[1672894373798,84.53908874,13.366,13.353,224.4]
[1672894374206,84.53908874,13.366,13.354,20.0]
[1672894374941,84.53908874,13.366,13.355,17.0]
[1672894375152,84.53908874,13.366,13.356,20.0]
[1672894375364,84.53908874,13.366,13.357,17.0]
[1672894375782,116.78775173,13.367,13.357,17.0]
[1672894375990,104.95748953,13.368,13.357,17.0]
[1672894376203,20.0,13.367,13.357,17.0]
[1672894376842,133.78775173,13.366,13.357,17.0]
[1672894377159,20.0,13.365,13.357,17.0]
[1672894378107,84.53908874,13.365,13.357,17.0]
[1672894378526,84.53908874,13.365,13.355,17.0]
[1672894378527,96.16,13.364,13.355,17.0]
[1672894378737,17.0,13.363,13.346,56.23]
[1672894378937,7.205,13.362,13.343,280.65]
[1672894379150,251.45587241,13.362,13.343,280.65]
[1672894379364,147.44312068,13.361,13.343,280.65]
[1672894379576,20.0,13.359,13.343,280.65]
[1672894380000,20.0,13.357,13.343,280.65]
[1672894380211,20.0,13.357,13.344,20.0]
[1672894380421,84.53908874,13.357,13.343,56.25]
[1672894380742,84.53908874,13.357,13.343,280.65]
[1672894380934,20.0,13.355,13.343,280.65]
[1672894381579,140.72908874,13.357,13.344,20.0]
[1672894381801,64.53908874,13.357,13.345,20.0]
[1672894381995,116.81775173,13.358,13.345,20.0]
[1672894382202,116.81775173,13.358,13.346,20.0]
[1672894382843,56.18,13.358,13.347,20.0]
[1672894383063,169.1976,13.36,13.347,20.0]
[1672894383262,169.1976,13.36,13.347,76.23]
[1672894383470,113.0276,13.36,13.347,76.23]
[1672894384401,169.1976,13.36,13.348,17.0]
[1672894384827,20.0,13.359,13.348,17.0]
[1672894385260,20.0,13.357,13.348,17.0]
[1672894385785,56.19,13.356,13.346,20.0]
[1672894386115,20.0,13.355,13.344,20.0]
[1672894386833,20.0,13.355,13.343,20.0]
[1672894388102,56.19,13.356,13.343,20.0]
[1672894388502,56.19,13.357,13.343,20.0]
[1672894388718,20.0,13.356,13.344,73.24]
[1672894388922,20.0,13.356,13.345,20.0]
[1672894389263,20.0,13.356,13.346,17.0]
[1672894390404,14.08654241,13.355,13.345,20.0]
[1672894390602,20.0,13.354,13.344,20.0]
[1672894390819,20.0,13.354,13.343,20.0]
[1672894391664,20.0,13.354,13.344,17.0]
[1672894391871,20.0,13.354,13.345,20.0]
[1672894392093,20.0,13.354,13.346,17.0]
[1672894392937,20.0,13.354,13.345,20.0]
[1672894393161,20.0,13.354,13.342,20.0]
[1672894393344,116.83775173,13.355,13.343,20.0]
[1672894393553,116.83775173,13.355,13.344,20.0]
[1672894393759,20.0,13.354,13.342,56.25]
[1672894393975,20.0,13.354,13.343,20.0]
[1672894394636,20.0,13.354,13.342,20.0]
[1672894395361,116.83775173,13.355,13.343,17.0]
[1672894395565,60.63775173,13.355,13.344,40.0]
[1672894395771,60.63775173,13.355,13.345,17.0]
[1672894395987,60.63775173,13.355,13.346,20.0]
[1672894396317,116.83775173,13.355,13.347,17.0]
[1672894397785,20.0,13.354,13.347,17.0]
[1672894399156,20.0,13.354,13.276,2.55143099]
[1672894399157,20.0,13.352,13.338,56.27]
[1672894399362,20.0,13.35,13.336,165.6447]
[1672894399684,20.0,13.348,13.336,165.6447]
[1672894400629,20.0,13.348,13.336,203.91525826]
[1672894401154,110.2788,13.349,13.336,203.91525826]
[1672894402097,110.2788,13.349,13.337,20.0]
[1672894402297,110.2788,13.349,13.338,17.0]
[1672894402937,20.0,13.348,13.336,203.91525826]
[1672894403150,20.0,13.348,13.336,109.3647]
[1672894403355,166.4988,13.349,13.337,56.27]
[1672894403572,166.4988,13.349,13.337,94.54055826]
[1672894403769,110.2788,13.349,13.336,428.31525826]
[1672894404305,110.2788,13.349,13.336,203.91525826]
[1672894404820,110.2788,13.349,13.336,428.31525826]
[1672894405230,110.2788,13.349,13.338,224.4]
[1672894405669,56.2,13.355,13.34,293.42]
[1672894405854,56.17,13.361,13.342,20.0]
[1672894406068,56.17,13.361,13.343,275.23612]
[1672894406296,56.17,13.361,13.344,20.0]
[1672894406499,76.17,13.361,13.346,20.0]
[1672894406825,20.0,13.36,13.347,17.0]
[1672894407016,20.0,13.36,13.347,73.23]
[1672894407229,20.0,13.358,13.347,17.0]
[1672894407855,56.18,13.359,13.347,17.0]
[1672894409349,20.0,13.358,13.346,17.0]
[1672894409773,20.0,13.358,13.344,20.0]
[1672894409774,56.19,13.357,13.345,17.0]
[1672894409962,20.0,13.356,13.346,20.0]
[1672894410181,20.0,13.354,13.341,20.0]
[1672894410395,20.0,13.353,13.341,20.0]
[1672894410615,76.2,13.353,13.34,20.0]
[1672894411024,20.0,13.352,13.339,57.009682]
[1672894411986,20.0,13.35,13.339,0.749682]
[1672894412405,20.0,13.348,13.339,0.749682]
[1672894412810,20.0,13.346,13.339,0.749682]
[1672894414394,76.24,13.345,13.339,0.749682]
[1672894414799,20.0,13.343,13.339,0.749682]
[1672894415008,112.0258,13.342,13.339,0.749682]
[1672894415218,20.0,13.341,13.339,0.749682]
[1672894418711,168.2758,13.342,13.339,0.749682]
[1672894419131,112.0258,13.342,13.339,0.749682]
[1672894419536,108.80513138,13.347,13.339,0.749682]
[1672894419746,56.21,13.351,13.339,0.749682]
[1672894420175,186.17444241,13.353,13.339,0.749682]
[1672894420382,20.0,13.352,13.339,0.749682]
[1672894420812,20.0,13.35,13.339,0.749682]
[1672894421655,56.21,13.351,13.339,0.749682]
[1672894423005,115.8879,13.353,13.34,12.76]
[1672894423215,115.8879,13.353,13.341,241.4]
[1672894423445,172.0879,13.353,13.342,20.0]
[1672894423648,115.8879,13.353,13.343,17.0]
[1672894424181,172.0879,13.353,13.343,17.0]
[1672894424387,115.8879,13.353,13.343,20.0]
[1672894424583,115.8879,13.353,13.344,17.0]
[1672894424794,172.0879,13.353,13.344,17.0]
[1672894425022,115.8879,13.353,13.343,17.0]
[1672894425546,20.0,13.351,13.34,56.26]
[1672894425741,20.0,13.351,13.339,0.749682]
[1672894426906,20.0,13.351,13.339,17.749682]
[1672894427532,76.21,13.352,13.339,17.749682]
[1672894428064,56.21,13.352,13.339,17.749682]
[1672894430355,56.21,13.352,13.339,0.749682]
[1672894430567,56.21,13.352,13.341,20.0]
[1672894430776,56.21,13.352,13.341,244.4]
[1672894431010,56.19,13.356,13.343,224.4]
[1672894431195,20.0,13.358,13.344,17.0]
[1672894431405,76.2,13.355,13.342,17.0]
[1672894431628,20.0,13.354,13.342,17.0]
[1672894431839,20.0,13.353,13.342,17.0]
[1672894432250,20.0,13.351,13.342,17.0]
[1672894433502,76.21,13.352,13.342,17.0]
[1672894433503,56.21,13.352,13.342,17.0]
[1672894433717,20.0,13.351,13.342,17.0]
[1672894434676,56.21,13.352,13.342,17.0]
[1672894434889,76.2,13.353,13.341,241.4]
[1672894435106,20.0,13.353,13.342,20.0]
[1672894435289,20.0,13.355,13.344,20.0]
[1672894435737,20.0,13.355,13.346,20.0]
[1672894436049,20.0,13.355,13.347,17.0]
[1672894438248,20.0,13.356,13.347,17.0]
[1672894438778,20.0,13.357,13.347,17.0]
[1672894438979,20.0,13.356,13.347,17.0]
[1672894439189,76.19,13.356,13.347,17.0]
[1672894439396,20.0,13.356,13.347,17.0]
[1672894439610,56.2,13.355,13.347,17.0]
[1672894439933,56.18,13.359,13.351,224.4]
[1672894440139,56.17,13.362,13.352,17.0]
[1672894440340,56.16,13.364,13.352,17.0]
[1672894440552,20.0,13.363,13.352,17.0]
[1672894441710,20.0,13.363,13.353,20.0]
[1672894442043,20.0,13.363,13.354,17.0]
[1672894444675,20.0,13.364,13.354,17.0]
[1672894445505,20.0,13.363,13.354,17.0]
[1672894445916,33.69238457,13.363,13.348,56.23]
[1672894446128,20.0,13.361,13.349,112.9697]
[1672894447519,56.17,13.362,13.351,20.0]
[1672894447727,56.17,13.362,13.352,17.0]
[1672894448673,111.409,13.363,13.353,244.4]
[1672894448861,111.409,13.363,13.354,17.0]
[1672894449076,20.0,13.364,13.354,17.0]
[1672894452644,20.0,13.364,13.353,17.0]
[1672894452862,20.0,13.364,13.354,20.0]
[1672894453084,20.0,13.364,13.355,17.0]
[1672894453715,56.16,13.363,13.35,56.22]
[1672894453930,20.0,13.362,13.35,56.22]
[1672894454245,20.0,13.362,13.35,280.62]
[1672894454637,167.7101,13.363,13.35,280.62]
[1672894455067,167.7101,13.363,13.352,20.0]
[1672894455289,167.7101,13.363,13.353,17.0]
[1672894455913,167.7101,13.363,13.352,17.0]
[1672894456963,167.7101,13.363,13.351,17.0]
[1672894457395,56.16,13.363,13.352,22.41737149]
[1672894457604,20.0,13.364,13.352,22.41737149]
[1672894457605,20.0,13.364,13.353,37.0]
[1672894458013,20.0,13.364,13.354,224.4]
[1672894458222,20.0,13.364,13.355,17.0]
[1672894459069,76.16,13.364,13.355,17.0]
[1672894459288,56.14,13.369,13.356,20.0]
[1672894459500,56.14,13.369,13.358,20.0]
[1672894459916,56.11,13.375,13.359,17.0]
[1672894460137,40.0,13.374,13.36,20.0]
[1672894460333,40.0,13.374,13.361,17.0]
[1672894460540,56.12,13.373,13.361,17.0]
[1672894460753,56.12,13.373,13.357,56.19]
[1672894460970,69.43378702,13.373,13.356,136.4486]
[1672894461374,20.0,13.372,13.356,136.4486]
[1672894461810,56.13,13.371,13.356,136.4486]
[1672894462009,108.2005,13.37,13.356,360.8486]
[1672894462224,20.0,13.369,13.358,20.0]
[1672894462460,20.0,13.369,13.359,17.0]
[1672894462461,56.14,13.369,13.359,17.0]
[1672894462846,108.2005,13.37,13.358,17.0]
[1672894463580,76.14,13.369,13.357,17.0]
[1672894464836,20.0,13.367,13.351,56.21]
[1672894465046,20.0,13.366,13.352,20.0]
[1672894465262,20.0,13.365,13.352,20.0]
[1672894465468,20.0,13.364,13.353,22.41737149]
[1672894465704,76.16,13.364,13.353,22.41737149]
[1672894465913,76.16,13.364,13.354,17.0]
[1672894467588,76.16,13.364,13.353,22.41737149]
[1672894468638,76.16,13.364,13.35,56.22]
[1672894468853,76.16,13.364,13.348,280.63]
[1672894469057,118.9091,13.363,13.35,78.63737149]
[1672894469261,20.0,13.362,13.35,78.63737149]
[1672894469475,76.17,13.362,13.35,22.41737149]
[1672894471480,76.17,13.362,13.349,112.9697]
[1672894471884,76.17,13.362,13.345,56.24]
[1672894472094,76.17,13.362,13.343,56.25]
[1672894472095,16.48,13.36,13.343,56.25]
[1672894472307,20.0,13.358,13.341,56.25]
[1672894472511,20.0,13.356,13.34,78.67737149]
[1672894472722,20.0,13.355,13.34,78.67737149]
[1672894472935,76.2,13.355,13.34,78.67737149]
[1672894473153,20.0,13.354,13.34,78.67737149]
[1672894473360,20.0,13.353,13.34,78.67737149]
[1672894473571,76.2,13.353,13.34,78.67737149]
[1672894473786,76.2,13.353,13.342,20.0]
[1672894473994,76.2,13.353,13.343,17.0]
[1672894474221,20.0,13.353,13.343,241.4]
[1672894474742,20.0,13.353,13.343,263.81737149]
[1672894474959,76.2,13.353,13.344,20.0]
[1672894475152,20.0,13.353,13.345,17.0]
[1672894475569,40.0,13.355,13.345,17.0]
[1672894475780,56.19,13.356,13.346,224.4]
[1672894476104,118.9091,13.363,13.348,224.4]
[1672894476313,20.0,13.361,13.349,37.0]
[1672894476532,20.0,13.361,13.349,93.22]
[1672894477271,173.3436,13.362,13.349,93.22]
[1672894477482,173.3436,13.362,13.349,37.0]
[1672894478319,173.3436,13.362,13.349,17.0]
[1672894478526,20.0,13.361,13.349,17.0]
[1672894479475,20.0,13.361,13.349,20.0]
[1672894479689,173.3436,13.362,13.35,17.0]
[1672894480511,173.3436,13.362,13.35,241.4]
[1672894480736,117.1736,13.362,13.351,20.0]
[1672894480935,173.3436,13.362,13.352,17.0]
[1672894484404,173.3436,13.362,13.349,113.9777]
[1672894484627,173.3436,13.362,13.35,20.0]
[1672894485255,173.3436,13.362,13.35,244.4]
[1672894485865,173.3436,13.362,13.352,20.0]
[1672894486092,173.3436,13.362,13.353,17.0]
[1672894486305,117.1736,13.362,13.353,17.0]
[1672894486707,173.3436,13.362,13.353,17.0]
[1672894487992,56.17,13.362,13.353,17.0]
[1672894488184,173.9764,13.368,13.354,20.0]
[1672894488395,40.0,13.367,13.355,17.0]
[1672894488824,56.15,13.366,13.355,17.0]
[1672894489029,40.0,13.365,13.355,17.0]
[1672894489244,20.0,13.365,13.355,17.0]
[1672894489871,56.15,13.366,13.355,17.0]
[1672894490084,56.14,13.369,13.358,20.0]
[1672894490294,108.2005,13.37,13.359,17.0]
[1672894490809,164.3305,13.37,13.359,17.0]
[1672894491022,108.2005,13.37,13.359,17.0]
[1672894491249,56.14,13.369,13.359,241.4]
[1672894491455,108.2005,13.37,13.36,20.0]
[1672894491657,108.2005,13.37,13.361,17.0]
[1672894492506,164.3305,13.37,13.361,17.0]
[1672894492706,108.2005,13.37,13.361,17.0]
[1672894493118,56.12,13.373,13.361,17.0]
[1672894493539,76.12,13.374,13.362,20.0]
[1672894493750,20.0,13.373,13.363,17.0]
[1672894495769,56.12,13.372,13.358,224.4]
[1672894496078,20.0,13.371,13.358,224.4]
[1672894496295,20.0,13.369,13.358,224.4]
[1672894496482,166.5218,13.37,13.358,224.4]
[1672894496902,166.5218,13.37,13.36,20.0]
[1672894497131,166.5218,13.37,13.361,17.0]
[1672894497132,110.3918,13.37,13.361,17.0]
[1672894497326,110.3918,13.37,13.359,17.0]
[1672894498175,110.3918,13.37,13.353,56.2]
[1672894498391,192.9439,13.369,13.349,113.9777]
[1672894498807,231.44834404,13.369,13.349,113.9777]
[1672894499019,20.0,13.368,13.351,20.0]
[1672894499260,20.0,13.366,13.351,20.0]
[1672894499657,20.0,13.364,13.352,17.0]
[1672894499868,20.0,13.363,13.353,20.0]
[1672894500183,56.15,13.365,13.354,17.0]
[1672894500394,56.14,13.368,13.356,20.0]
[1672894500719,56.14,13.368,13.357,17.0]
[1672894501149,56.14,13.368,13.358,20.0]
[1672894501363,56.14,13.368,13.359,17.0]
[1672894501556,172.9439,13.369,13.359,17.0]
[1672894502406,116.8039,13.369,13.359,241.4]
[1672894502939,116.8039,13.369,13.36,20.0]
[1672894503132,116.8039,13.369,13.361,17.0]
[1672894504507,116.8039,13.369,13.36,17.0]
[1672894506930,116.8039,13.369,13.36,20.0]
[1672894507119,116.8039,13.369,13.361,17.0]
[1672894507540,116.8039,13.369,13.36,17.0]
[1672894510272,116.8039,13.369,13.36,20.0]
[1672894510509,116.8039,13.369,13.361,17.0]
[1672894511346,116.8039,13.369,13.36,17.0]
[1672894513022,116.8039,13.369,13.36,20.0]
[1672894513234,116.8039,13.369,13.361,17.0]
[1672894513653,116.8039,13.369,13.36,17.0]
[1672894514730,116.8039,13.369,13.359,17.0]
[1672894515448,116.8039,13.369,13.358,22.41737149]
[1672894515780,20.0,13.368,13.354,280.6]
[1672894516173,20.0,13.368,13.355,22.41737149]
[1672894516729,56.15,13.367,13.351,280.61]
[1672894516931,20.0,13.365,13.351,224.4]
[1672894517129,20.0,13.364,13.344,224.4]
[1672894517338,89.47378702,13.364,13.344,224.4]
[1672894517548,20.0,13.363,13.346,224.4]
[1672894517753,20.0,13.361,13.346,224.4]
[1672894518074,20.0,13.361,13.348,224.4]
[1672894518397,33.31378702,13.361,13.351,20.0]
[1672894518606,13.31378702,13.361,13.352,17.0]
[1672894519319,13.31378702,13.361,13.35,224.4]
[1672894519320,69.48378702,13.361,13.351,17.0]
[1672894519534,13.31378702,13.361,13.351,17.0]
[1672894519959,13.31378702,13.361,13.351,20.0]
[1672894520171,13.31378702,13.361,13.352,17.0]
[1672894520378,13.31378702,13.361,13.349,113.9777]
[1672894521340,13.31378702,13.361,13.349,338.3777]
[1672894521760,13.31378702,13.361,13.35,17.0]
[1672894522818,33.31378702,13.361,13.35,17.0]
[1672894524293,13.31378702,13.361,13.35,241.4]
[1672894525212,33.31378702,13.361,13.35,241.4]
[1672894525426,33.31378702,13.361,13.35,17.0]
[1672894525860,13.31378702,13.361,13.35,17.0]
[1672894527553,33.31378702,13.361,13.35,17.0]
[1672894528275,13.31378702,13.361,13.35,17.0]
[1672894529100,33.31378702,13.361,13.35,17.0]
[1672894529305,33.31378702,13.361,13.35,241.4]
[1672894530374,33.31378702,13.361,13.35,17.0]
[1672894531946,69.48378702,13.361,13.35,17.0]
[1672894532370,20.0,13.36,13.35,17.0]
[1672894533321,33.31378702,13.36,13.35,17.0]
[1672894533514,20.0,13.358,13.35,17.0]
[1672894534157,20.0,13.358,13.344,56.24]
[1672894534372,33.31378702,13.358,13.345,20.0]
[1672894535229,20.0,13.356,13.345,20.0]
[1672894535543,20.0,13.356,13.346,17.0]
[1672894535752,89.49378702,13.358,13.346,17.0]
[1672894542260,69.49378702,13.358,13.346,17.0]
[1672894542477,69.49378702,13.358,13.347,20.0]
[1672894542478,56.18,13.358,13.347,20.0]
[1672894542678,56.17,13.36,13.348,17.0]
[1672894542889,20.0,13.36,13.348,17.0]
[1672894543207,112.1119,13.362,13.351,224.4]
[1672894543415,112.1119,13.362,13.352,17.0]
[1672894545406,20.0,13.364,13.353,20.0]
[1672894545624,76.16,13.363,13.354,17.0]
[1672894546151,20.0,13.365,13.354,17.0]
[1672894546767,20.0,13.365,13.354,241.4]